bitfinex/quotes_SOLUSD_20220109
["timestamp","ask_amount","ask_price","bid_price","bid_amount"]
[1641748727368,1.738,143.82,143.75,13.66195899]
[1641748727369,12.1733,143.82,143.75,13.66195899]
[1641748727571,3.91609662,143.84,143.76,1.738]
[1641748727969,30.61304554,143.87,143.76,1.738]
[1641748728172,5.82924554,143.87,143.76,1.738]
[1641748728372,36.74909729,143.87,143.76,1.738]
[1641748728571,30.03218078,143.84,143.75,13.66195899]
[1641748728777,0.738,143.83,143.75,13.66195899]
[1641748728972,10.11,143.84,143.75,13.66195899]
[1641748729184,3.0,143.83,143.75,13.66195899]
[1641748729373,1.738,143.82,143.75,13.66195899]
[1641748729772,1.738,143.82,143.7,1.738]
[1641748730975,1.738,143.82,143.67,47.4599]
[1641748730976,36.32254837,143.81,143.68,24.60350454]
[1641748731176,1.739,143.8,143.68,24.60350454]
[1641748731476,1.739,143.8,143.68,22.86450454]
[1641748732077,3.92899044,143.79,143.68,22.86450454]
[1641748732277,29.1937158,143.77,143.67,1.739]
[1641748732478,10.4409,143.75,143.67,1.739]
[1641748733383,1.739,143.76,143.67,1.739]
[1641748733579,3.91609662,143.78,143.67,12.1784]
[1641748733782,3.91609662,143.77,143.68,0.25]
[1641748734078,3.91609662,143.77,143.69,1.739]
[1641748734280,3.91609662,143.77,143.7,24.65789595]
[1641748734580,10.4386,143.79,143.71,1.739]
[1641748735984,10.4386,143.79,143.7,24.65789595]
[1641748737684,14.35469662,143.79,143.7,24.65789595]
[1641748739288,10.11,143.78,143.67,1.739]
[1641748739489,10.4414,143.75,143.66,102.9849]
[1641748739687,10.4414,143.75,143.67,1.739]
[1641748740090,10.4414,143.75,143.68,31.3199145]
[1641748740511,12.1804,143.75,143.68,31.3199145]
[1641748743320,10.4414,143.75,143.68,31.3199145]
[1641748744116,3.91609662,143.76,143.68,31.3199145]
[1641748744315,3.91609662,143.76,143.69,1.989]
[1641748744518,36.5389,143.8,143.69,1.739]
[1641748744519,3.91609662,143.77,143.69,1.739]
[1641748745319,7.8567421,143.79,143.69,1.739]
[1641748745919,10.439,143.78,143.69,1.739]
[1641748746118,14.35509662,143.78,143.69,1.739]
[1641748746821,14.35509662,143.78,143.7,10.36]
[1641748746822,3.91609662,143.78,143.7,10.36]
[1641748747020,3.91609662,143.78,143.74,10.4344]
[1641748747622,3.91609662,143.81,143.75,8.81347687]
[1641748748221,3.91609662,143.81,143.75,19.24707687]
[1641748748824,3.91609662,143.81,143.75,8.81347687]
[1641748749622,1.96973268,143.78,143.75,8.81347687]
[1641748750825,1.96973268,143.79,143.75,8.81347687]
[1641748752127,1.96973268,143.79,143.75,19.24717687]
[1641748752326,1.96973268,143.8,143.75,19.24717687]
[1641748752528,1.96973268,143.8,143.76,1.988]
[1641748753034,1.96973268,143.81,143.76,1.988]
[1641748753830,1.96973268,143.81,143.78,10.4313]
[1641748754034,1.96973268,143.82,143.78,10.4313]
[1641748754831,1.96973268,143.83,143.79,35.33062277]
[1641748756235,3.268e-05,143.83,143.8,0.25]
[1641748756432,4.09124554,143.87,143.81,12.1647]
[1641748756635,4.09124554,143.87,143.81,24.05552586]
[1641748756833,4.09124554,143.87,143.82,0.25]
[1641748757034,4.09124554,143.87,143.83,1.737]
[1641748757332,4.09124554,143.87,143.83,3.51782586]
[1641748757533,4.09124554,143.87,143.84,0.25]
[1641748757733,0.17514892,143.87,143.84,0.25]
[1641748757940,0.17514892,143.87,143.83,1.737]
[1641748759036,0.17514892,143.87,143.85,10.4257]
[1641748759271,0.17514892,143.87,143.86,38.737]
[1641748759470,6.23954884,143.87,143.85,1.737]
[1641748759676,6.23954884,143.87,143.79,24.5699]
[1641748759867,6.23954884,143.87,143.79,11.847]
[1641748760068,1.738,143.86,143.75,3.51882586]
[1641748760269,1.738,143.86,143.75,1.78082586]
[1641748760468,1.738,143.86,143.73,78.719]
[1641748760669,10.28514892,143.87,143.74,52.82357302]
[1641748760870,0.17514892,143.87,143.74,77.10767302]
[1641748761070,0.17514892,143.87,143.79,10.4305]
[1641748761272,0.17514892,143.87,143.8,1.738]
[1641748761470,0.17514892,143.87,143.81,0.25]
[1641748761670,0.17514892,143.87,143.77,61.572]
[1641748761671,0.17514892,143.87,143.82,1.738]
[1641748761874,0.17514892,143.87,143.83,25.06039573]
[1641748762872,0.17514892,143.87,143.84,0.25]
[1641748763272,3.91609662,143.95,143.84,10.62]
[1641748763473,3.91609662,143.95,143.85,1.78082586]
[1641748763671,3.91609662,143.95,143.86,10.11]
[1641748763876,1.737,143.99,143.9,25.06039573]
[1641748764073,17.4234,144.0,143.9,25.06039573]
[1641748764272,7.0,144.0,143.9,25.06039573]
[1641748765571,3.0,143.99,143.9,35.48309573]
[1641748765771,17.4227,144.0,143.9,35.48309573]
[1641748765772,7.0,144.0,143.91,1.736]
[1641748766773,7.0,144.0,143.91,12.1576]
[1641748767373,3.0,143.99,143.91,12.1576]
[1641748769073,3.0,143.99,143.9,25.06039573]
[1641748769679,3.0,143.99,143.91,0.25]
[1641748769880,3.0,143.99,143.92,1.736]
[1641748770076,3.0,143.99,143.91,1.736]
[1641748770279,7.0,144.0,143.91,1.986]
[1641748770477,7.0,144.0,143.93,10.4204]
[1641748770679,37.2359936,144.0,143.94,1.736]
[1641748770877,37.2359936,144.0,143.91,25.231]
[1641748771080,7.0,144.0,143.91,1.736]
[1641748772181,7.0,144.0,143.91,13.93832586]
[1641748772779,7.0,144.0,143.91,24.04832586]
[1641748773381,7.0,144.0,143.92,0.25]
[1641748773583,7.0,144.0,143.95,15.07299564]
[1641748774082,7.0,144.0,143.93,1.736]
[1641748774281,7.0,144.0,143.91,11.846]
[1641748774482,12.1597,143.99,143.91,10.11]
[1641748774687,10.4237,143.99,143.91,10.11]
[1641748775084,10.4237,143.99,143.91,34.70888826]
[1641748775284,10.4237,143.99,143.88,12.1597]
[1641748775486,1.736,143.98,143.87,1.736]
[1641748775684,10.4273,143.94,143.87,1.736]
[1641748775886,10.4273,143.94,143.84,10.4266]
[1641748776283,10.4273,143.94,143.85,28.7596323]
[1641748777288,1.737,143.93,143.85,27.0226323]
[1641748777784,1.737,143.93,143.82,10.11]
[1641748777785,10.4127,144.12,144.04,31.64427795]
[1641748777985,1.81662902,144.15,144.04,31.64427795]
[1641748778184,4.95384511,144.06,144.05,47.725]
[1641748778385,4.95384511,144.06,144.05,45.99]
[1641748778785,1.81662902,144.15,144.05,45.99]
[1641748778988,0.14962902,144.15,144.05,47.724]
[1641748779488,0.14962902,144.15,144.05,3.724]
[1641748779687,10.56392902,144.15,144.05,3.724]
[1641748779891,1.734,144.14,144.05,1.99]
[1641748780486,30.15044708,144.13,144.05,1.99]
[1641748780687,1.735,144.12,144.05,1.99]
[1641748782594,77.0,144.11,144.04,23.45497795]
[1641748782791,1.805,144.12,143.93,10.11]
[1641748782792,77.0,144.09,143.93,10.11]
[1641748782992,77.0,144.09,143.91,1.735]
[1641748782993,0.07,144.08,143.91,1.735]
[1641748783191,1.736,144.07,143.92,8.33]
[1641748783392,23.39532724,144.06,143.93,8.33]
[1641748783591,1.736,144.05,143.94,1.736]
[1641748783791,1.736,144.05,143.95,8.33]
[1641748784198,23.32532724,144.06,143.96,1.736]
[1641748784394,1.735,144.05,143.96,8.33]
[1641748785515,1.735,144.05,143.92,8.33]
[1641748785715,10.065,144.05,143.89,47.5685]
[1641748785915,10.065,144.05,143.88,1.736]
[1641748786316,1.78082586,144.04,143.83,1.736]
[1641748786516,28.83121521,144.02,143.83,1.736]
[1641748786716,10.067,144.01,143.8,36.4933]
[1641748786921,11.84782586,144.01,143.81,8.33]
[1641748787419,28.72398146,143.98,143.81,21.98130931]
[1641748787615,1.737,143.97,143.82,3.51782586]
[1641748787817,1.737,143.97,143.82,46.59892586]
[1641748788215,3.0,143.96,143.82,46.59892586]
[1641748788416,26.50871788,143.95,143.82,46.59892586]
[1641748788816,26.50871788,143.95,143.82,10.067]
[1641748788817,24.77171788,143.95,143.82,10.067]
[1641748789017,1.737,143.94,143.82,10.067]
[1641748789217,1.737,143.94,143.82,8.33]
[1641748789517,1.737,143.94,143.83,1.737]
[1641748790819,1.737,143.94,143.78,78.7917]
[1641748791019,1.737,143.94,143.82,0.3137458]
[1641748791220,1.737,143.99,143.82,8.33]
[1641748791420,8.33,144.0,143.81,1.737]
[1641748791622,8.33,144.0,143.81,10.067]
[1641748791820,3.0,143.99,143.81,10.067]
[1641748792021,30.23295799,143.98,143.81,10.067]
[1641748792221,30.23295799,143.98,143.81,89.0856]
[1641748792622,30.74555594,143.95,143.82,10.4281]
[1641748792823,30.74555594,143.95,143.82,18.7581]
[1641748792824,1.737,143.94,143.82,18.7581]
[1641748794028,4.737,143.99,143.83,71.57]
[1641748794227,4.737,143.99,143.87,10.4245]
[1641748794427,4.737,143.99,143.88,8.33]
[1641748795029,25.92722172,143.98,143.85,8.33]
[1641748795228,25.92722172,143.98,143.83,42.3648]
[1641748795229,1.737,143.97,143.83,42.3648]
[1641748795927,1.737,143.97,143.83,8.33]
[1641748796129,8.33,143.96,143.81,1.737]
[1641748796327,31.04868824,143.95,143.8,10.43]
[1641748796528,34.04868824,143.95,143.79,87.0059]
[1641748796729,34.04868824,143.95,143.8,1.737]
[1641748796927,34.04868824,143.95,143.8,10.067]
[1641748797730,27.6265798,143.92,143.8,10.067]
[1641748797931,27.6265798,143.92,143.8,8.33]
[1641748798131,1.737,143.91,143.8,8.33]
[1641748799332,1.737,143.91,143.76,10.067]
[1641748799833,12.1689,143.91,143.76,10.067]
[1641748800232,20.4989,143.91,143.76,10.067]
[1641748800534,20.4989,143.91,143.76,8.33]
[1641748801534,20.4989,143.91,143.73,72.5036]
[1641748801735,20.4989,143.91,143.71,1.738]
[1641748801937,26.96185461,143.91,143.68,8.33]
[1641748802136,10.4397,143.8,143.68,8.33]
[1641748802334,34.799,143.84,143.68,8.33]
[1641748802335,29.67176203,143.79,143.68,8.33]
[1641748804234,40.11216203,143.79,143.65,77.7709]
[1641748804436,40.11216203,143.79,143.65,77.2709]
[1641748805838,40.11216203,143.79,143.65,87.7118]
[1641748806438,40.11216203,143.79,143.64,8.33]
[1641748806639,8.33,143.78,143.61,8.33]
[1641748806839,10.4431,143.75,143.61,8.33]
[1641748807038,1.739,143.74,143.61,8.33]
[1641748807239,1.739,143.74,143.62,12.1831]
[1641748808240,25.19083686,143.75,143.62,12.1831]
[1641748809740,1.739,143.74,143.62,12.1831]
[1641748810344,10.443,143.76,143.62,12.1831]
[1641748810345,1.739,143.77,143.62,12.1831]
[1641748810544,20.5106,143.77,143.62,36.112]
[1641748810742,10.069,143.77,143.62,10.4431]
[1641748811140,30.27823624,143.76,143.62,10.4431]
[1641748811342,1.739,143.75,143.62,10.4431]
[1641748811743,12.1825,143.75,143.62,10.4431]
[1641748812143,1.739,143.75,143.61,8.33]
[1641748812442,10.069,143.75,143.61,8.33]
[1641748813844,10.069,143.75,143.6,127.5246]
[1641748814443,10.069,143.75,143.6,78.6732]
[1641748814742,10.4465,143.7,143.58,76.162]
[1641748814948,22.5310314,143.68,143.58,76.162]
[1641748815143,22.5310314,143.68,143.54,82.0347]
[1641748815144,22.5310314,143.68,143.54,8.33]
[1641748815345,1.74,143.67,143.54,8.33]
[1641748815545,0.07,143.65,143.54,8.33]
[1641748815745,1.741,143.64,143.54,8.33]
[1641748815946,1.741,143.64,143.54,18.7789]
[1641748816146,1.741,143.66,143.54,18.7789]
[1641748816945,31.0100375,143.66,143.54,18.7789]
[1641748817148,29.2690375,143.66,143.54,18.7789]
[1641748817748,0.07,143.65,143.54,18.7789]
[1641748818050,1.741,143.64,143.54,18.7789]
[1641748818349,26.47529488,143.63,143.54,18.7789]
[1641748818748,1.741,143.62,143.54,18.7789]
[1641748819048,10.4486,143.67,143.54,18.7789]
[1641748819278,1.74,143.66,143.54,18.7789]
[1641748819678,0.07,143.65,143.54,18.7789]
[1641748819881,1.741,143.64,143.54,8.33]
[1641748820282,0.07,143.62,143.54,8.33]
[1641748820478,1.741,143.61,143.52,35.449]
[1641748820681,28.41178136,143.61,143.52,10.4499]
[1641748821082,28.41178136,143.61,143.51,88.0815]
[1641748821381,28.41178136,143.61,143.52,3.0]
[1641748822081,28.41178136,143.61,143.51,79.7515]
[1641748822282,38.86468136,143.61,143.51,79.7515]
[1641748822884,28.41178136,143.61,143.51,79.7515]
[1641748823085,1.741,143.61,143.51,79.7515]
[1641748823287,1.741,143.64,143.6,3.62925346]
[1641748823485,1.741,143.64,143.52,47.2179]
[1641748824084,30.76127039,143.64,143.52,47.2179]
[1641748824884,30.76127039,143.64,143.51,79.7515]
[1641748825085,0.07,143.62,143.51,79.7515]
[1641748825286,1.741,143.61,143.51,79.7515]
[1641748825486,0.07,143.6,143.51,79.7515]
[1641748825686,1.741,143.59,143.51,79.7515]
[1641748826288,1.741,143.59,143.47,10.4533]
[1641748826289,31.94529779,143.58,143.48,1.741]
[1641748826488,31.94529779,143.58,143.39,86.332]
[1641748826489,1.741,143.57,143.47,8.33]
[1641748826688,0.07,143.56,143.44,8.33]
[1641748827089,1.742,143.55,143.45,22.8608]
[1641748827390,0.07,143.58,143.45,24.6028]
[1641748827590,1.741,143.57,143.45,22.8608]
[1641748827795,1.741,143.57,143.46,0.25]
[1641748827990,8.33,143.6,143.46,3.52282586]
[1641748828192,1.741,143.59,143.46,27.83812586]
[1641748828591,1.741,143.59,143.47,0.25]
[1641748828791,1.741,143.59,143.47,10.4524]
[1641748828991,1.741,143.59,143.47,1.78082586]
[1641748829190,1.741,143.59,143.48,1.78082586]
[1641748829595,1.741,143.59,143.47,22.8294]
[1641748830192,1.741,143.59,143.47,41.6118]
[1641748830394,24.23793563,143.62,143.48,3.52182586]
[1641748830592,24.23793563,143.62,143.49,76.7513]
[1641748830792,24.23793563,143.62,143.49,78.53212586]
[1641748830995,24.23793563,143.62,143.49,86.86212586]
[1641748831293,22.49693563,143.62,143.52,10.4503]
[1641748831493,22.49693563,143.62,143.5,25.1128]
[1641748831693,1.741,143.61,143.5,27.29011538]
[1641748832393,0.25,143.6,143.5,23.3718]
[1641748832591,1.741,143.59,143.5,23.3718]
[1641748832793,31.56643483,143.59,143.49,76.7513]
[1641748833193,1.811,143.59,143.49,76.7513]
[1641748833394,1.811,143.59,143.49,78.53212586]
[1641748833696,0.07,143.59,143.49,78.53212586]
[1641748833894,0.07,143.59,143.5,24.0969]
[1641748834095,0.07,143.59,143.52,10.4502]
[1641748834494,1.741,143.67,143.53,87.581]
[1641748834694,90.20919394,143.68,143.54,23.6017]
[1641748834897,90.20919394,143.68,143.55,10.07]
[1641748835094,0.07,143.67,143.55,10.07]
[1641748835296,91.94919394,143.68,143.55,10.07]
[1641748835494,91.94919394,143.68,143.56,1.78082586]
[1641748835694,1.74,143.71,143.57,1.74]
[1641748836193,12.1852,143.71,143.6,10.4442]
[1641748836397,12.2552,143.71,143.57,1.74]
[1641748837095,1.81,143.71,143.57,11.85082586]
[1641748837393,10.14,143.76,143.61,10.4418]
[1641748837594,1.81,143.76,143.62,1.739]
[1641748837793,1.81,143.76,143.63,8.33]
[1641748837994,0.07,143.76,143.64,1.739]
[1641748838195,0.07,143.76,143.64,10.069]
[1641748838497,0.07,143.76,143.65,3.25]
[1641748839499,0.07,143.76,143.7,10.437]
[1641748839900,0.07,143.76,143.71,1.78082586]
[1641748840204,1.739,143.87,143.72,0.07]
[1641748840399,108.87549715,143.89,143.72,0.07]
[1641748840400,1.738,143.88,143.73,8.33]
[1641748840603,1.738,143.88,143.74,4.738]
[1641748840799,1.738,143.88,143.78,10.431]
[1641748841800,0.25,143.87,143.78,10.431]
[1641748842004,1.738,143.86,143.78,10.431]
[1641748842401,0.25,143.85,143.78,10.431]
[1641748842604,1.738,143.88,143.78,10.431]
[1641748842904,0.25,143.87,143.78,10.431]
[1641748843103,1.738,143.86,143.78,10.431]
[1641748843305,1.738,143.88,143.78,10.431]
[1641748843505,1.738,143.89,143.78,10.431]
[1641748844507,1.238,143.89,143.78,10.431]
[1641748845108,8.33,143.9,143.78,12.169]
[1641748845306,10.068,143.9,143.78,12.169]
[1641748846639,10.068,143.9,143.78,10.431]
[1641748846838,10.068,143.9,143.76,25.4332]
[1641748846839,0.25,143.89,143.76,25.4332]
[1641748847038,1.738,143.88,143.73,97.63595815]
[1641748847237,31.80024789,143.87,143.73,87.56795815]
[1641748847437,1.738,143.86,143.73,24.9244]
[1641748847637,1.238,143.86,143.73,24.9244]
[1641748847837,10.4349,143.85,143.73,24.9244]
[1641748848039,25.7073332,143.84,143.73,24.9244]
[1641748848241,1.738,143.84,143.73,35.3589]
[1641748848439,1.738,143.86,143.73,37.0969]
[1641748849043,12.1721,143.86,143.73,26.6624]
[1641748849248,26.42071539,143.85,143.73,26.6624]
[1641748849442,1.738,143.84,143.73,26.6624]
[1641748850243,12.1738,143.84,143.73,1.738]
[1641748850642,12.1738,143.84,143.72,99.981]
[1641748851043,0.25,143.83,143.72,99.981]
[1641748851446,0.25,143.83,143.72,101.719]
[1641748851946,0.25,143.83,143.72,112.1549]
[1641748852854,10.6862,143.83,143.72,112.1549]
[1641748853047,29.14115716,143.82,143.72,112.1549]
[1641748855251,1.738,143.84,143.72,112.1549]
[1641748855652,1.738,143.86,143.72,124.70843153]
[1641748856053,1.738,143.86,143.73,8.58]
[1641748856254,25.56249157,143.86,143.73,8.33]
[1641748856682,1.738,143.85,143.73,8.33]
[1641748857083,10.436,143.84,143.73,8.33]
[1641748857387,1.738,143.85,143.73,8.33]
[1641748857583,27.28223818,143.83,143.73,10.068]
[1641748857783,27.03223818,143.83,143.73,8.33]
[1641748857983,0.25,143.82,143.73,8.33]
[1641748860492,1.988,143.82,143.73,8.33]
[1641748860687,1.988,143.82,143.71,22.874]
[1641748860988,10.318,143.82,143.69,1.738]
[1641748861188,10.318,143.82,143.64,24.9221]
[1641748861387,10.318,143.82,143.64,23.1831]
[1641748861388,20.7551,143.82,143.64,23.1831]
[1641748862587,20.7551,143.82,143.64,33.6248]
[1641748862990,23.8385909,143.8,143.64,33.6248]
[1641748863188,11.759,143.79,143.65,1.739]
[1641748863386,11.759,143.79,143.65,13.78982586]
[1641748863587,11.759,143.79,143.7,10.4373]
[1641748863787,10.02,143.79,143.7,10.4373]
[1641748863988,10.02,143.79,143.67,45.2953]
[1641748864186,20.4592,143.79,143.67,45.2953]
[1641748865487,1.739,143.78,143.67,45.2953]
[1641748865786,42.25486286,143.77,143.67,45.2953]
[1641748866989,0.25,143.76,143.67,45.2953]
[1641748867794,0.25,143.76,143.65,20.4604]
[1641748867991,10.6913,143.76,143.64,1.739]
[1641748868192,28.91809666,143.74,143.63,57.9388]
[1641748868391,1.739,143.73,143.63,47.497]
[1641748868592,1.739,143.73,143.62,80.54948699]
[1641748868793,21.54799998,143.63,143.59,3.91478699]
[1641748868992,1.74,143.62,143.59,3.91478699]
[1641748869192,6.06439992,143.61,143.56,5.92139432]
[1641748869391,1.741,143.6,143.56,5.92139432]
[1641748869795,1.741,143.62,143.51,3.93528351]
[1641748869993,10.101,143.62,143.51,3.93528351]
[1641748870398,10.4533,143.59,143.51,3.93528351]
[1641748870593,10.101,143.62,143.51,3.93528351]
[1641748870995,10.101,143.62,143.45,1.741]
[1641748871193,10.101,143.62,143.46,8.36]
[1641748871394,10.4548,143.57,143.46,18.8148]
[1641748871594,1.741,143.56,143.46,18.8148]
[1641748872193,38.66053245,143.6,143.46,18.8148]
[1641748872396,30.25591963,143.57,143.47,1.742]
[1641748872593,30.25591963,143.57,143.46,1.741]
[1641748872796,1.741,143.56,143.44,87.705]
[1641748873599,10.4539,143.58,143.45,10.4546]
[1641748873795,1.742,143.59,143.46,8.36]
[1641748873997,21.54799998,143.63,143.46,8.61]
[1641748874195,0.25,143.61,143.47,4.78082586]
[1641748874396,1.991,143.62,143.48,8.61]
[1641748874596,1.991,143.62,143.48,10.14082586]
[1641748874795,10.4519,143.6,143.48,20.59252586]
[1641748874999,28.34657855,143.59,143.48,18.8117]
[1641748875897,21.54799998,143.63,143.48,18.8117]
[1641748875898,10.4525,143.6,143.48,18.8117]
[1641748876098,21.54799998,143.63,143.49,1.991]
[1641748876300,21.54799998,143.63,143.53,0.07]
[1641748876499,21.54799998,143.63,143.54,10.101]
[1641748876900,21.54799998,143.63,143.56,0.07]
[1641748877103,21.54799998,143.63,143.57,8.36]
[1641748877301,21.54799998,143.63,143.57,18.8063]
[1641748878003,21.54799998,143.63,143.54,8.36]
[1641748878300,0.25,143.62,143.54,8.36]
[1641748878500,0.25,143.62,143.54,18.8089]
[1641748879301,0.25,143.62,143.54,8.36]
[1641748879802,1.741,143.61,143.54,8.36]
[1641748880104,10.4546,143.57,143.49,1.95139744]
[1641748880302,1.741,143.56,143.47,1.95139744]
[1641748880701,1.741,143.59,143.47,1.95139744]
[1641748880904,8.36,143.6,143.47,1.95139744]
[1641748881104,36.15095182,143.6,143.48,1.741]
[1641748881307,1.741,143.59,143.45,4.741]
[1641748882102,1.741,143.59,143.45,6.52182586]
[1641748882302,1.741,143.59,143.46,0.25]
[1641748882504,1.741,143.61,143.47,10.101]
[1641748882708,10.101,143.62,143.47,10.101]
[1641748882932,8.36,143.62,143.48,0.51]
[1641748883106,0.25,143.61,143.49,1.741]
[1641748883508,0.25,143.61,143.5,0.25]
[1641748883707,0.25,143.61,143.51,1.741]
[1641748883907,10.101,143.62,143.52,0.25]
[1641748884106,21.54799998,143.63,143.53,1.741]
[1641748884606,21.54799998,143.63,143.53,3.52182586]
[1641748884808,10.101,143.73,143.55,77.0]
[1641748885009,1.741,143.73,143.56,64.822]
[1641748885210,22.63424006,143.75,143.57,61.9022]
[1641748885407,22.63424006,143.75,143.58,45.48]
[1641748885609,22.63424006,143.75,143.58,48.48]
[1641748885811,1.74,143.76,143.58,108.60788217]
[1641748886009,1.74,143.76,143.6,51.462]
[1641748886210,8.36,143.77,143.61,10.099]
[1641748886509,8.36,143.8,143.62,61.8999]
[1641748886709,8.36,143.8,143.63,61.561]
[1641748886910,24.31430823,143.81,143.64,0.07]
[1641748887110,24.31430823,143.81,143.65,10.099]
[1641748887510,24.31430823,143.81,143.66,3.32]
[1641748887712,1.739,143.8,143.71,10.4365]
[1641748887911,24.31430823,143.81,143.71,10.4365]
[1641748888509,24.31430823,143.81,143.72,3.0]
[1641748888711,24.31430823,143.81,143.72,10.4355]
[1641748889112,1.739,143.83,143.72,10.4355]
[1641748889310,0.25,143.8,143.72,10.4355]
[1641748889510,1.739,143.83,143.72,10.4355]
[1641748889710,0.25,143.82,143.72,10.4355]
[1641748890112,28.99353761,143.82,143.72,10.4355]
[1641748890313,28.74353761,143.82,143.72,10.4355]
[1641748890715,28.74353761,143.82,143.7,10.4368]
[1641748890914,1.739,143.81,143.7,10.4368]
[1641748891117,1.739,143.81,143.71,3.0]
[1641748891515,1.739,143.81,143.69,3.0]
[1641748891719,0.25,143.8,143.69,3.0]
[1641748891915,0.25,143.8,143.68,8.36]
[1641748892316,0.25,143.8,143.69,10.4374]
[1641748892717,0.25,143.8,143.68,8.36]
[1641748892718,10.688,143.8,143.68,8.36]
[1641748893020,1.739,143.79,143.69,3.0]
[1641748893718,27.8725073,143.79,143.69,3.0]
[1641748893919,1.739,143.79,143.69,3.0]
[1641748894119,1.739,143.79,143.69,21.7979]
[1641748894319,8.36,143.84,143.69,18.7979]
[1641748894519,1.738,143.83,143.69,18.7979]
[1641748895020,1.738,143.83,143.74,10.4337]
[1641748895319,39.74017567,143.84,143.74,10.4337]
[1641748896722,1.738,143.83,143.74,10.4337]
[1641748896924,1.988,143.83,143.74,10.4337]
[1641748897823,1.738,143.87,143.74,10.4337]
[1641748898057,1.738,143.87,143.75,38.2797]
[1641748898253,90.65160849,143.91,143.76,1.808]
[1641748898254,7.26198072,143.88,143.76,1.808]
[1641748898455,1.738,143.87,143.76,0.07]
[1641748898855,26.55719533,143.87,143.76,0.07]
[1641748899058,26.55719533,143.87,143.76,1.808]
[1641748899257,26.55719533,143.87,143.76,2.058]
[1641748899858,26.55719533,143.87,143.8,10.43]
[1641748900058,1.738,143.9,143.8,10.43]
[1641748900959,32.68236243,143.9,143.8,10.43]
[1641748901359,43.11306243,143.9,143.78,10.4309]
[1641748901959,0.25,143.89,143.75,11.36]
[1641748902161,1.738,143.88,143.75,11.36]
[1641748902360,27.26774103,143.87,143.75,11.36]
[1641748902559,1.738,143.86,143.77,10.432]
[1641748903361,1.738,143.88,143.77,10.432]
[1641748903560,1.738,143.91,143.77,10.432]
[1641748903762,10.098,143.91,143.77,18.792]
[1641748904262,42.09217604,143.91,143.77,20.57282586]
[1641748905066,0.25,143.9,143.77,20.57282586]
[1641748906564,0.25,143.9,143.77,18.792]
[1641748906764,0.25,143.9,143.78,1.738]
[1641748907164,10.6808,143.9,143.78,1.738]
[1641748907363,1.738,143.89,143.75,8.36]
[1641748907564,22.9472959,143.88,143.75,8.36]
[1641748907763,1.738,143.87,143.75,8.36]
[1641748908565,0.25,143.86,143.76,1.78082586]
[1641748908964,22.9472959,143.88,143.75,8.36]
[1641748909166,0.25,143.87,143.75,8.36]
[1641748909365,30.25264514,143.85,143.75,8.36]
[1641748909565,1.738,143.84,143.75,8.36]
[1641748909767,30.25264514,143.85,143.75,8.36]
[1641748910268,30.25264514,143.85,143.75,18.793]
[1641748910771,1.738,143.86,143.75,18.793]
[1641748910970,1.738,143.9,143.76,1.78082586]